[Event "Early-Titled-Tuesday-Blitz-April-02-2024"]
[Site "Chess.com"]
[Date "2024.04.02"]
[Round "10"]
[White "kritipatel"]
[Black "PonyQueen07"]
[Result "0-1"]
[WhiteElo "2219"]
[BlackElo "2204"]
[TimeControl "180+1"]
[EndTime "9:56:27 PDT"]
[Termination "PonyQueen07 won by checkmate"]

1. e4 {[%clk 0:03:00.9]} 1... c5 {[%clk 0:02:59.8]} 2. d4 {[%clk 0:02:56.9]}
2... cxd4 {[%clk 0:02:59.6]} 3. c3 {[%clk 0:02:57.4]} 3... dxc3 {[%clk
0:02:59.6]} 4. Nxc3 {[%clk 0:02:58.3]} 4... Nc6 {[%clk 0:03:00]} 5. Nf3 {[%clk
0:02:59]} 5... e6 {[%clk 0:02:59.3]} 6. Bc4 {[%clk 0:02:59.4]} 6... Bb4 {[%clk
0:02:59.8]} 7. O-O {[%clk 0:02:58.9]} 7... Nge7 {[%clk 0:02:58.6]} 8. Qe2 {[%clk
0:02:58.9]} 8... Bxc3 {[%clk 0:02:51.7]} 9. bxc3 {[%clk 0:02:58.8]} 9... O-O
{[%clk 0:02:52.3]} 10. Rd1 {[%clk 0:02:59.4]} 10... d5 {[%clk 0:02:48.9]} 11.
exd5 {[%clk 0:02:56.3]} 11... exd5 {[%clk 0:02:49.2]} 12. Ba3 {[%clk 0:02:56.2]}
12... Be6 {[%clk 0:02:46.4]} 13. Ng5 {[%clk 0:02:46.5]} 13... Qc8 {[%clk
0:02:25.8]} 14. Bxd5 {[%clk 0:02:38.9]} 14... Nxd5 {[%clk 0:02:16.7]} 15. Bxf8
{[%clk 0:02:35.4]} 15... Kxf8 {[%clk 0:01:42.5]} 16. Qf3 {[%clk 0:02:32.5]}
16... Nf6 {[%clk 0:01:32.7]} 17. Rd6 {[%clk 0:02:27.2]} 17... h6 {[%clk
0:01:28]} 18. Nxe6+ {[%clk 0:02:25.3]} 18... fxe6 {[%clk 0:01:25.6]} 19. Re1
{[%clk 0:02:25.3]} 19... Nd8 {[%clk 0:01:00.1]} 20. h3 {[%clk 0:02:22.8]} 20...
Qc7 {[%clk 0:00:57.9]} 21. Red1 {[%clk 0:02:09.8]} 21... Nf7 {[%clk 0:00:36.8]}
22. Rxe6 {[%clk 0:02:03.2]} 22... Ng5 {[%clk 0:00:28.9]} 23. Rxf6+ {[%clk
0:01:56.7]} 23... gxf6 {[%clk 0:00:29.8]} 24. Qxf6+ {[%clk 0:01:57.1]} 24... Nf7
{[%clk 0:00:29.8]} 25. Rd3 {[%clk 0:01:39.3]} 25... Qe5 {[%clk 0:00:26.2]} 26.
Qf3 {[%clk 0:01:31.1]} 26... Qe1+ {[%clk 0:00:21.9]} 27. Kh2 {[%clk 0:01:30.8]}
27... Qe5+ {[%clk 0:00:21.6]} 28. g3 {[%clk 0:01:31.2]} 28... Qe7 {[%clk
0:00:11.6]} 29. Qf5 {[%clk 0:01:28.5]} 29... Rd8 {[%clk 0:00:09.8]} 30. Re3
{[%clk 0:01:25.4]} 30... Qg5 {[%clk 0:00:08.9]} 31. Qf3 {[%clk 0:01:21.1]} 31...
Re8 {[%clk 0:00:05.5]} 32. Rd3 {[%clk 0:01:12]} 32... Kg7 {[%clk 0:00:03.7]} 33.
Qxb7 {[%clk 0:01:09.2]} 33... Re7 {[%clk 0:00:03.1]} 34. Qf3 {[%clk 0:01:07.9]}
34... Ne5 {[%clk 0:00:02.7]} 35. Qe2 {[%clk 0:00:50.2]} 35... Nxd3 {[%clk
0:00:02.5]} 36. Qxd3 {[%clk 0:00:50.9]} 36... Qe5 {[%clk 0:00:02.3]} 37. c4
{[%clk 0:00:47.7]} 37... Qe4 {[%clk 0:00:02.6]} 38. Qc3+ {[%clk 0:00:46]} 38...
Qe5 {[%clk 0:00:03.1]} 39. Qb4 {[%clk 0:00:46.6]} 39... Qf6 {[%clk 0:00:02.6]}
40. c5 {[%clk 0:00:46.9]} 40... Re2 {[%clk 0:00:01.6]} 41. Qf4 {[%clk
0:00:42.1]} 41... Qxf4 {[%clk 0:00:01.6]} 42. gxf4 {[%clk 0:00:42.6]} 42...
Rxf2+ {[%clk 0:00:02.2]} 43. Kg3 {[%clk 0:00:43.3]} 43... Rxa2 {[%clk
0:00:02.5]} 44. c6 {[%clk 0:00:43.2]} 44... Rc2 {[%clk 0:00:03]} 45. c7 {[%clk
0:00:43.7]} 45... Rxc7 {[%clk 0:00:03.9]} 46. Kg4 {[%clk 0:00:44.4]} 46... a5
{[%clk 0:00:04.2]} 47. Kh5 {[%clk 0:00:44.9]} 47... a4 {[%clk 0:00:04.4]} 48. h4
{[%clk 0:00:45.8]} 48... a3 {[%clk 0:00:04.9]} 49. f5 {[%clk 0:00:46.5]} 49...
a2 {[%clk 0:00:05.5]} 50. f6+ {[%clk 0:00:47]} 50... Kxf6 {[%clk 0:00:06]} 51.
Kxh6 {[%clk 0:00:47.5]} 51... a1=Q {[%clk 0:00:04.7]} 52. h5 {[%clk 0:00:48.1]}
52... Qc1# {[%clk 0:00:03.3]} 0-1

[Event "Early-Titled-Tuesday-Blitz-April-02-2024"]
[Site "Chess.com"]
[Date "2024.04.02"]
[Round "10"]
[White "bazar-wokzal"]
[Black "David_ATM"]
[Result "0-1"]
[WhiteElo "2544"]
[BlackElo "2443"]
[TimeControl "180+1"]
[EndTime "9:56:34 PDT"]
[Termination "David_ATM won on time"]

1. e4 {[%clk 0:03:00.9]} 1... e5 {[%clk 0:03:00.2]} 2. Bc4 {[%clk 0:02:59.5]}
2... Nc6 {[%clk 0:03:00.4]} 3. f4 {[%clk 0:02:59.3]} 3... d6 {[%clk 0:02:59.5]}
4. Nf3 {[%clk 0:02:59]} 4... Nf6 {[%clk 0:02:59]} 5. Nc3 {[%clk 0:02:58.8]} 5...
Bg4 {[%clk 0:02:57.7]} 6. O-O {[%clk 0:02:57.7]} 6... Nd4 {[%clk 0:02:54.1]} 7.
fxe5 {[%clk 0:02:56.9]} 7... Bxf3 {[%clk 0:02:45.2]} 8. gxf3 {[%clk 0:02:55.9]}
8... dxe5 {[%clk 0:02:45.7]} 9. Kh1 {[%clk 0:02:52]} 9... c6 {[%clk 0:02:33.4]}
10. a4 {[%clk 0:02:45]} 10... Nh5 {[%clk 0:02:32.4]} 11. d3 {[%clk 0:02:44.4]}
11... Bd6 {[%clk 0:02:26.6]} 12. Ne2 {[%clk 0:02:21.5]} 12... Qh4 {[%clk
0:02:17.6]} 13. Nxd4 {[%clk 0:02:16.5]} 13... exd4 {[%clk 0:01:54]} 14. e5
{[%clk 0:01:58.7]} 14... Ng3+ {[%clk 0:01:44.9]} 15. Kg2 {[%clk 0:01:57.2]}
15... Nxf1 {[%clk 0:01:45.1]} 16. Qxf1 {[%clk 0:01:21.9]} 16... Bxe5 {[%clk
0:01:43.9]} 17. f4 {[%clk 0:01:17.3]} 17... Qg4+ {[%clk 0:01:23]} 18. Kh1 {[%clk
0:01:16.4]} 18... Bf6 {[%clk 0:01:23.2]} 19. Bd2 {[%clk 0:01:06.9]} 19... O-O
{[%clk 0:01:07.8]} 20. Re1 {[%clk 0:00:58.7]} 20... Rfe8 {[%clk 0:01:05]} 21.
Re4 {[%clk 0:00:58.7]} 21... Rxe4 {[%clk 0:00:49]} 22. dxe4 {[%clk 0:00:58.7]}
22... Re8 {[%clk 0:00:49.6]} 23. e5 {[%clk 0:00:58.8]} 23... Bh4 {[%clk
0:00:45.1]} 24. Bb4 {[%clk 0:00:48.9]} 24... Be7 {[%clk 0:00:37.4]} 25. Be1
{[%clk 0:00:41.5]} 25... Bh4 {[%clk 0:00:36.5]} 26. Bb4 {[%clk 0:00:40.6]} 26...
b6 {[%clk 0:00:37]} 27. Be2 {[%clk 0:00:33.9]} 27... Qf5 {[%clk 0:00:37.1]} 28.
Bd3 {[%clk 0:00:34]} 28... Qg4 {[%clk 0:00:33.6]} 29. Be2 {[%clk 0:00:33.7]}
29... Qe6 {[%clk 0:00:33.7]} 30. Qf3 {[%clk 0:00:32.5]} 30... Qd5 {[%clk
0:00:31.7]} 31. Qxd5 {[%clk 0:00:29]} 31... cxd5 {[%clk 0:00:32.6]} 32. Kg2
{[%clk 0:00:26.3]} 32... f6 {[%clk 0:00:28.1]} 33. Bd6 {[%clk 0:00:18.4]} 33...
fxe5 {[%clk 0:00:26.9]} 34. fxe5 {[%clk 0:00:16.2]} 34... Kf7 {[%clk 0:00:11.4]}
35. Bf3 {[%clk 0:00:14.9]} 35... Be7 {[%clk 0:00:06]} 36. Bxd5+ {[%clk
0:00:14.8]} 36... Kf8 {[%clk 0:00:06.6]} 0-1

[Event "Early-Titled-Tuesday-Blitz-April-02-2024"]
[Site "Chess.com"]
[Date "2024.04.02"]
[Round "10"]
[White "microbear"]
[Black "Kate1606"]
[Result "1-0"]
[WhiteElo "2362"]
[BlackElo "2130"]
[TimeControl "180+1"]
[EndTime "9:56:35 PDT"]
[Termination "microbear won on time"]

1. e4 {[%clk 0:02:56.9]} 1... Nf6 {[%clk 0:02:53.9]} 2. e5 {[%clk 0:02:48.5]}
2... Nd5 {[%clk 0:02:53.3]} 3. d4 {[%clk 0:02:48.4]} 3... d6 {[%clk 0:02:51.3]}
4. c4 {[%clk 0:02:49]} 4... Nb6 {[%clk 0:02:50.5]} 5. exd6 {[%clk 0:02:49.9]}
5... cxd6 {[%clk 0:02:47.7]} 6. Nf3 {[%clk 0:02:50.8]} 6... g6 {[%clk
0:02:41.1]} 7. Nc3 {[%clk 0:02:51.2]} 7... Bg7 {[%clk 0:02:40.9]} 8. Be2 {[%clk
0:02:51.3]} 8... O-O {[%clk 0:02:40.5]} 9. Be3 {[%clk 0:02:51.9]} 9... Bg4
{[%clk 0:02:28.1]} 10. b3 {[%clk 0:02:45.5]} 10... d5 {[%clk 0:02:19.8]} 11. c5
{[%clk 0:02:37.1]} 11... Nc8 {[%clk 0:02:19.4]} 12. b4 {[%clk 0:02:30.8]} 12...
a6 {[%clk 0:02:06.5]} 13. h3 {[%clk 0:02:18.9]} 13... Bxf3 {[%clk 0:02:06]} 14.
Bxf3 {[%clk 0:02:19.8]} 14... e6 {[%clk 0:02:06.2]} 15. a4 {[%clk 0:02:19.2]}
15... Ne7 {[%clk 0:01:54.5]} 16. Qd2 {[%clk 0:01:54.6]} 16... Nbc6 {[%clk
0:01:51.3]} 17. b5 {[%clk 0:01:52.9]} 17... Na5 {[%clk 0:01:42.4]} 18. O-O
{[%clk 0:01:22.6]} 18... Nb3 {[%clk 0:01:40.4]} 19. Qb2 {[%clk 0:01:22.3]} 19...
Nxa1 {[%clk 0:01:39.9]} 20. Rxa1 {[%clk 0:01:23.2]} 20... axb5 {[%clk
0:01:38.8]} 21. axb5 {[%clk 0:01:21.6]} 21... Rxa1+ {[%clk 0:01:38.4]} 22. Qxa1
{[%clk 0:01:21.4]} 22... Qa8 {[%clk 0:01:37.6]} 23. Qb2 {[%clk 0:01:19]} 23...
Nf5 {[%clk 0:01:36.5]} 24. Ne2 {[%clk 0:01:09]} 24... Qa4 {[%clk 0:01:30.5]} 25.
g4 {[%clk 0:00:59.4]} 25... Nxe3 {[%clk 0:01:26.9]} 26. fxe3 {[%clk 0:01:00.3]}
26... Bh6 {[%clk 0:01:21.2]} 27. Kf2 {[%clk 0:00:56.2]} 27... Ra8 {[%clk
0:01:12.6]} 28. e4 {[%clk 0:00:37.9]} 28... Qa3 {[%clk 0:00:33.8]} 29. Qxa3
{[%clk 0:00:36.6]} 29... Rxa3 {[%clk 0:00:33.3]} 30. exd5 {[%clk 0:00:37.5]}
30... exd5 {[%clk 0:00:27.8]} 31. Bxd5 {[%clk 0:00:36.6]} 31... Ra5 {[%clk
0:00:19.9]} 32. c6 {[%clk 0:00:27.2]} 32... bxc6 {[%clk 0:00:19.4]} 33. bxc6
{[%clk 0:00:27.6]} 33... Ra7 {[%clk 0:00:18.5]} 34. Kf3 {[%clk 0:00:22.9]} 34...
Kf8 {[%clk 0:00:17.1]} 35. Ke4 {[%clk 0:00:22.1]} 35... Ke7 {[%clk 0:00:16.9]}
36. Nc3 {[%clk 0:00:21.2]} 36... Kd8 {[%clk 0:00:14]} 37. Nb5 {[%clk 0:00:21.1]}
37... Ra5 {[%clk 0:00:13.4]} 38. Nd6 {[%clk 0:00:16.1]} 38... Kc7 {[%clk
0:00:11.6]} 39. Nxf7 {[%clk 0:00:16.3]} 39... Bf8 {[%clk 0:00:09.4]} 40. Ng5
{[%clk 0:00:14.9]} 40... Be7 {[%clk 0:00:05.8]} 41. Nxh7 {[%clk 0:00:14.8]}
41... Ra3 {[%clk 0:00:04.7]} 42. h4 {[%clk 0:00:10.8]} 42... Bxh4 {[%clk
0:00:03.2]} 43. Nf8 {[%clk 0:00:11.2]} 1-0

[Event "Early-Titled-Tuesday-Blitz-April-02-2024"]
[Site "Chess.com"]
[Date "2024.04.02"]
[Round "10"]
[White "Mikhail_Golubev"]
[Black "Aisen1011"]
[Result "0-1"]
[WhiteElo "2603"]
[BlackElo "2510"]
[TimeControl "180+1"]
[EndTime "9:56:37 PDT"]
[Termination "Aisen1011 won on time"]

1. e4 {[%clk 0:03:00.9]} 1... d5 {[%clk 0:02:58.8]} 2. exd5 {[%clk 0:02:58.4]}
2... Qxd5 {[%clk 0:02:58.1]} 3. Nf3 {[%clk 0:02:58.5]} 3... Bg4 {[%clk
0:02:56.3]} 4. Be2 {[%clk 0:02:58.6]} 4... Nc6 {[%clk 0:02:56.5]} 5. d4 {[%clk
0:02:58.8]} 5... Nf6 {[%clk 0:02:55.8]} 6. c4 {[%clk 0:02:56.8]} 6... Qd7 {[%clk
0:02:55.8]} 7. Be3 {[%clk 0:02:31.5]} 7... O-O-O {[%clk 0:02:54.4]} 8. d5 {[%clk
0:02:26]} 8... Bxf3 {[%clk 0:02:52]} 9. gxf3 {[%clk 0:02:13.7]} 9... Ne5 {[%clk
0:02:28.8]} 10. Qd4 {[%clk 0:01:57.8]} 10... Nc6 {[%clk 0:02:13.8]} 11. Qc3
{[%clk 0:01:46.3]} 11... Nb8 {[%clk 0:02:07.6]} 12. Na3 {[%clk 0:01:46.1]} 12...
a6 {[%clk 0:01:55.4]} 13. O-O-O {[%clk 0:01:45.7]} 13... e6 {[%clk 0:01:31.9]}
14. dxe6 {[%clk 0:01:35.5]} 14... Qxe6 {[%clk 0:01:32.8]} 15. Rxd8+ {[%clk
0:01:35]} 15... Kxd8 {[%clk 0:01:32.6]} 16. Rd1+ {[%clk 0:01:35.7]} 16... Kc8
{[%clk 0:01:31.7]} 17. Nc2 {[%clk 0:01:09.1]} 17... Nc6 {[%clk 0:01:29.1]} 18.
Nd4 {[%clk 0:01:03.4]} 18... Nxd4 {[%clk 0:01:28.5]} 19. Qxd4 {[%clk 0:01:02.6]}
19... Bd6 {[%clk 0:00:37.1]} 20. Qa7 {[%clk 0:00:57.4]} 20... c6 {[%clk
0:00:21.7]} 21. Qa8+ {[%clk 0:00:29.7]} 21... Bb8 {[%clk 0:00:08.1]} 22. Bf4
{[%clk 0:00:20.2]} 22... Nd7 {[%clk 0:00:08.5]} 23. Rxd7 {[%clk 0:00:18.8]}
23... Kxd7 {[%clk 0:00:09.4]} 24. Qxb7+ {[%clk 0:00:18.1]} 24... Ke8 {[%clk
0:00:03.6]} 25. Qxb8+ {[%clk 0:00:16.9]} 25... Ke7 {[%clk 0:00:04.2]} 26. Qxh8
{[%clk 0:00:14]} 26... Qxe2 {[%clk 0:00:04.5]} 27. Qxg7 {[%clk 0:00:12.7]} 27...
Qf1+ {[%clk 0:00:02.4]} 28. Kd2 {[%clk 0:00:11.9]} 28... Qxf2+ {[%clk
0:00:02.3]} 29. Kc1 {[%clk 0:00:02.1]} 29... Qe1+ {[%clk 0:00:01.6]} 30. Kc2
{[%clk 0:00:01.8]} 30... Qe2+ {[%clk 0:00:02]} 31. Kb3 {[%clk 0:00:01.1]} 31...
Qxf3+ {[%clk 0:00:02.1]} 32. Kb4 {[%clk 0:00:01.4]} 32... Qxf4 {[%clk
0:00:02.6]} 33. Qxh7 {[%clk 0:00:01.6]} 33... Qd6+ {[%clk 0:00:03.1]} 34. Kb3
{[%clk 0:00:01.2]} 34... Qd3+ {[%clk 0:00:03.3]} 35. Kb4 {[%clk 0:00:01.3]}
35... Qxh7 {[%clk 0:00:03.5]} 0-1

[Event "Early-Titled-Tuesday-Blitz-April-02-2024"]
[Site "Chess.com"]
[Date "2024.04.02"]
[Round "10"]
[White "CSB7"]
[Black "RuperezA"]
[Result "0-1"]
[WhiteElo "2765"]
[BlackElo "2569"]
[TimeControl "180+1"]
[EndTime "9:56:38 PDT"]
[Termination "RuperezA won by resignation"]

1. e4 {[%clk 0:03:00.9]} 1... e6 {[%clk 0:03:00.9]} 2. d4 {[%clk 0:02:49]} 2...
d5 {[%clk 0:03:01.8]} 3. Nd2 {[%clk 0:02:46.6]} 3... Nf6 {[%clk 0:03:00.7]} 4.
e5 {[%clk 0:02:46.1]} 4... Nfd7 {[%clk 0:03:01.4]} 5. c3 {[%clk 0:02:46.1]} 5...
c5 {[%clk 0:03:02.3]} 6. f4 {[%clk 0:02:46.3]} 6... Nc6 {[%clk 0:03:03.1]} 7.
Ndf3 {[%clk 0:02:44.9]} 7... cxd4 {[%clk 0:03:03.2]} 8. cxd4 {[%clk 0:02:44.7]}
8... f5 {[%clk 0:03:03.9]} 9. Bd3 {[%clk 0:02:41]} 9... Be7 {[%clk 0:03:04.4]}
10. Ne2 {[%clk 0:02:40.6]} 10... O-O {[%clk 0:03:05.3]} 11. Rg1 {[%clk
0:02:26.9]} 11... Nb6 {[%clk 0:03:06.2]} 12. g4 {[%clk 0:02:24.4]} 12... Bd7
{[%clk 0:03:05.8]} 13. a3 {[%clk 0:02:12.3]} 13... Be8 {[%clk 0:03:02.1]} 14.
gxf5 {[%clk 0:02:04]} 14... exf5 {[%clk 0:03:03]} 15. Ng3 {[%clk 0:02:00]} 15...
Bg6 {[%clk 0:03:02]} 16. b3 {[%clk 0:01:53.3]} 16... a5 {[%clk 0:02:59.8]} 17.
Ra2 {[%clk 0:01:43.9]} 17... a4 {[%clk 0:02:58]} 18. b4 {[%clk 0:01:42.6]} 18...
Bh4 {[%clk 0:02:24.9]} 19. Kf1 {[%clk 0:01:24.6]} 19... Rc8 {[%clk 0:02:17.8]}
20. Rag2 {[%clk 0:01:19.6]} 20... Kh8 {[%clk 0:02:10]} 21. Be3 {[%clk
0:00:40.6]} 21... Na7 {[%clk 0:02:02.5]} 22. Bf2 {[%clk 0:00:21.9]} 22... Rc3
{[%clk 0:01:37.8]} 23. Qd2 {[%clk 0:00:06.4]} 23... Rxa3 {[%clk 0:01:16.3]} 24.
Nxf5 {[%clk 0:00:06.5]} 24... Bxf2 {[%clk 0:01:11.8]} 25. Rxg6 {[%clk
0:00:06.4]} 25... Bxg1 {[%clk 0:01:04]} 26. Rxg1 {[%clk 0:00:05.9]} 26... Nc4
{[%clk 0:00:59.9]} 27. Bxc4 {[%clk 0:00:03.6]} 27... Rxf3+ {[%clk 0:00:39.3]}
28. Ke2 {[%clk 0:00:03.4]} 28... dxc4 {[%clk 0:00:39.7]} 29. Kxf3 {[%clk
0:00:03.3]} 29... Rxf5 {[%clk 0:00:39.7]} 30. d5 {[%clk 0:00:03.5]} 30... Nc6
{[%clk 0:00:36.4]} 31. Ke4 {[%clk 0:00:02.9]} 31... Ne7 {[%clk 0:00:32]} 32. d6
{[%clk 0:00:03]} 32... c3 {[%clk 0:00:16.9]} 33. dxe7 {[%clk 0:00:02.8]} 33...
Qxe7 {[%clk 0:00:13.4]} 34. Qd6 {[%clk 0:00:03.5]} 34... Qf7 {[%clk 0:00:10.6]}
35. Qd8+ {[%clk 0:00:02.8]} 35... Qf8 {[%clk 0:00:11.3]} 36. Qxf8+ {[%clk
0:00:02.1]} 36... Rxf8 {[%clk 0:00:12.2]} 37. e6 {[%clk 0:00:02.4]} 37... Kg8
{[%clk 0:00:11.4]} 38. Ke5 {[%clk 0:00:02.6]} 38... Rc8 {[%clk 0:00:11.4]} 39.
Kd6 {[%clk 0:00:02.4]} 39... c2 {[%clk 0:00:10.1]} 40. Kd7 {[%clk 0:00:02.2]}
40... c1=Q {[%clk 0:00:09.5]} 41. Rxc1 {[%clk 0:00:02.3]} 41... Rxc1 {[%clk
0:00:09.2]} 42. e7 {[%clk 0:00:03.2]} 42... Re1 {[%clk 0:00:09.8]} 43. Kc7
{[%clk 0:00:04.1]} 43... Rxe7+ {[%clk 0:00:10]} 0-1

[Event "Early-Titled-Tuesday-Blitz-April-02-2024"]
[Site "Chess.com"]
[Date "2024.04.02"]
[Round "10"]
[White "tk22h"]
[Black "Vesper2018"]
[Result "0-1"]
[WhiteElo "2396"]
[BlackElo "2570"]
[TimeControl "180+1"]
[EndTime "9:56:38 PDT"]
[Termination "Vesper2018 won by resignation"]

1. c4 {[%clk 0:02:59.6]} 1... e5 {[%clk 0:02:59]} 2. Nc3 {[%clk 0:02:59.1]} 2...
d6 {[%clk 0:02:59.2]} 3. Nf3 {[%clk 0:02:59.2]} 3... f5 {[%clk 0:02:58.5]} 4. d4
{[%clk 0:02:59.2]} 4... e4 {[%clk 0:02:58.6]} 5. Ng5 {[%clk 0:02:59.4]} 5... Be7
{[%clk 0:02:58.5]} 6. Nh3 {[%clk 0:02:59.3]} 6... Be6 {[%clk 0:02:38.9]} 7. Nf4
{[%clk 0:02:43.8]} 7... Bf7 {[%clk 0:02:36.1]} 8. h4 {[%clk 0:02:39]} 8... Bxh4
{[%clk 0:02:29]} 9. g3 {[%clk 0:02:38.8]} 9... Be7 {[%clk 0:02:24]} 10. d5
{[%clk 0:02:35.2]} 10... Nd7 {[%clk 0:02:20.3]} 11. Bh3 {[%clk 0:02:31.2]} 11...
g6 {[%clk 0:02:20.3]} 12. g4 {[%clk 0:02:28.3]} 12... Nh6 {[%clk 0:01:58.7]} 13.
Ne6 {[%clk 0:02:27.4]} 13... Bxe6 {[%clk 0:01:50.6]} 14. dxe6 {[%clk 0:02:27.3]}
14... Ne5 {[%clk 0:01:29]} 15. Bxh6 {[%clk 0:02:25.9]} 15... Bg5 {[%clk
0:01:19.8]} 16. Bg7 {[%clk 0:02:20.7]} 16... Nxc4 {[%clk 0:00:55.7]} 17. Bxh8
{[%clk 0:02:11.9]} 17... c6 {[%clk 0:00:32.4]} 18. gxf5 {[%clk 0:02:10.4]} 18...
Bd2+ {[%clk 0:00:30.7]} 19. Kf1 {[%clk 0:02:09.9]} 19... e3 {[%clk 0:00:29.9]}
20. b3 {[%clk 0:02:05.3]} 20... Qh4 {[%clk 0:00:28.9]} 21. Rh2 {[%clk
0:01:57.1]} 21... Qf4 {[%clk 0:00:25.9]} 22. Rg2 {[%clk 0:01:48.9]} 22... Qh4
{[%clk 0:00:20]} 23. Rg3 {[%clk 0:01:38.7]} 23... exf2 {[%clk 0:00:16.9]} 24.
Kxf2 {[%clk 0:01:37]} 24... Bf4 {[%clk 0:00:14.2]} 25. Ne4 {[%clk 0:01:23.6]}
25... Bxg3+ {[%clk 0:00:08.3]} 26. Nxg3 {[%clk 0:01:23.1]} 26... Qf4+ {[%clk
0:00:08.4]} 27. Kg2 {[%clk 0:01:23]} 27... Ne3+ {[%clk 0:00:08.4]} 28. Kh2
{[%clk 0:01:23.2]} 28... Qf2+ {[%clk 0:00:07.6]} 29. Kh1 {[%clk 0:01:21.5]}
29... Nxd1 {[%clk 0:00:07.9]} 30. Rxd1 {[%clk 0:00:57.5]} 30... Qxg3 {[%clk
0:00:08.2]} 31. Bg2 {[%clk 0:00:48.8]} 31... Ke7 {[%clk 0:00:08.1]} 32. Bd4
{[%clk 0:00:33.9]} 32... gxf5 {[%clk 0:00:08.4]} 33. Bg1 {[%clk 0:00:30.3]}
33... Rg8 {[%clk 0:00:07.2]} 34. Bf3 {[%clk 0:00:25.2]} 34... Qh3+ {[%clk
0:00:07.2]} 35. Bh2 {[%clk 0:00:25.4]} 35... d5 {[%clk 0:00:07.1]} 36. Rg1
{[%clk 0:00:24.8]} 36... Rxg1+ {[%clk 0:00:06.7]} 37. Kxg1 {[%clk 0:00:25]}
37... Kxe6 {[%clk 0:00:07.2]} 38. Bf4 {[%clk 0:00:22.6]} 38... c5 {[%clk
0:00:07.3]} 39. Kf2 {[%clk 0:00:20.4]} 39... c4 {[%clk 0:00:07.5]} 40. bxc4
{[%clk 0:00:19.6]} 40... dxc4 {[%clk 0:00:07.9]} 41. Bxb7 {[%clk 0:00:18.9]}
41... c3 {[%clk 0:00:07.8]} 42. Bf3 {[%clk 0:00:17.1]} 42... c2 {[%clk
0:00:07.8]} 43. Bd2 {[%clk 0:00:16.7]} 43... Qh4+ {[%clk 0:00:07.8]} 44. Ke3
{[%clk 0:00:16.5]} 44... Qg5+ {[%clk 0:00:06.8]} 45. Kd3 {[%clk 0:00:16.5]}
45... c1=Q {[%clk 0:00:07.2]} 46. Bxc1 {[%clk 0:00:15.7]} 46... Qxc1 {[%clk
0:00:06.9]} 0-1

[Event "Early-Titled-Tuesday-Blitz-April-02-2024"]
[Site "Chess.com"]
[Date "2024.04.02"]
[Round "10"]
[White "David_George21"]
[Black "tortorchess"]
[Result "0-1"]
[WhiteElo "2337"]
[BlackElo "2231"]
[TimeControl "180+1"]
[EndTime "9:56:38 PDT"]
[Termination "tortorchess won by checkmate"]

1. e4 {[%clk 0:02:55]} 1... c5 {[%clk 0:03:00]} 2. Nf3 {[%clk 0:02:54.4]} 2...
Nc6 {[%clk 0:03:00.4]} 3. Bb5 {[%clk 0:02:52.8]} 3... e6 {[%clk 0:02:57.5]} 4.
Bxc6 {[%clk 0:02:48.8]} 4... bxc6 {[%clk 0:02:57]} 5. O-O {[%clk 0:02:48.4]}
5... Ne7 {[%clk 0:02:56.1]} 6. d3 {[%clk 0:02:47.7]} 6... Ng6 {[%clk 0:02:53.6]}
7. e5 {[%clk 0:02:45.3]} 7... Be7 {[%clk 0:02:52.7]} 8. Nbd2 {[%clk 0:02:44.1]}
8... O-O {[%clk 0:02:52.6]} 9. b3 {[%clk 0:02:37.9]} 9... f6 {[%clk 0:02:51.7]}
10. exf6 {[%clk 0:02:33.3]} 10... Bxf6 {[%clk 0:02:51.5]} 11. Rb1 {[%clk
0:02:34]} 11... d5 {[%clk 0:02:49.9]} 12. Bb2 {[%clk 0:02:34.3]} 12... e5 {[%clk
0:02:48.4]} 13. Re1 {[%clk 0:02:33.3]} 13... Re8 {[%clk 0:02:45.5]} 14. Nf1
{[%clk 0:02:29.1]} 14... Qd6 {[%clk 0:02:34.1]} 15. Ng3 {[%clk 0:02:24.6]} 15...
Bd7 {[%clk 0:02:26.3]} 16. Ba3 {[%clk 0:02:11.3]} 16... Re7 {[%clk 0:02:17]} 17.
Qd2 {[%clk 0:02:08.8]} 17... a5 {[%clk 0:02:01.1]} 18. Qe3 {[%clk 0:02:04.4]}
18... d4 {[%clk 0:01:55.1]} 19. Qd2 {[%clk 0:01:50.3]} 19... Bg4 {[%clk
0:01:42]} 20. Ne4 {[%clk 0:01:48.8]} 20... Qe6 {[%clk 0:01:41.2]} 21. Nxc5
{[%clk 0:01:42.9]} 21... Qd6 {[%clk 0:01:34.1]} 22. Qc1 {[%clk 0:01:29.6]} 22...
Bxf3 {[%clk 0:01:33.1]} 23. Ne4 {[%clk 0:01:26.5]} 23... Qe6 {[%clk 0:01:27.7]}
24. Bxe7 {[%clk 0:01:17.3]} 24... Qg4 {[%clk 0:01:10.2]} 25. Ng3 {[%clk
0:01:15.1]} 25... Bxg2 {[%clk 0:01:04.9]} 26. Bxf6 {[%clk 0:01:10.6]} 26... gxf6
{[%clk 0:01:04.7]} 27. Qh6 {[%clk 0:00:11.7]} 27... Nh4 {[%clk 0:00:32]} 28.
Qxf6 {[%clk 0:00:10.1]} 28... Rf8 {[%clk 0:00:28.8]} 29. Qxe5 {[%clk 0:00:06.5]}
29... Nf3+ {[%clk 0:00:26.4]} 30. Kxg2 {[%clk 0:00:05.6]} 30... Nxe5 {[%clk
0:00:25]} 31. Rxe5 {[%clk 0:00:05.8]} 31... Qf3+ {[%clk 0:00:22.4]} 32. Kh3
{[%clk 0:00:06.1]} 32... Rf6 {[%clk 0:00:20.1]} 33. Rg5+ {[%clk 0:00:04.2]}
33... Kf7 {[%clk 0:00:18.8]} 34. Rh5 {[%clk 0:00:04.3]} 34... h6 {[%clk
0:00:14.4]} 35. Rf1 {[%clk 0:00:03.2]} 35... Rf4 {[%clk 0:00:14.2]} 36. Re1
{[%clk 0:00:03.2]} 36... Qg4+ {[%clk 0:00:13.5]} 37. Kg2 {[%clk 0:00:03.5]}
37... Qf3+ {[%clk 0:00:13.5]} 38. Kh3 {[%clk 0:00:03.7]} 38... Qxf2 {[%clk
0:00:13.8]} 39. Ree5 {[%clk 0:00:02.4]} 39... Rf3 {[%clk 0:00:13.3]} 40. Rxh6
{[%clk 0:00:02.5]} 40... Qf1+ {[%clk 0:00:13.2]} 41. Kg4 {[%clk 0:00:02.5]}
41... Rf4+ {[%clk 0:00:13.3]} 42. Kg5 {[%clk 0:00:02.8]} 42... Qf3 {[%clk
0:00:12.7]} 43. Rh7+ {[%clk 0:00:03.1]} 43... Kf8 {[%clk 0:00:12.2]} 44. Rh8+
{[%clk 0:00:02]} 44... Kg7 {[%clk 0:00:12.5]} 45. Rhe8 {[%clk 0:00:02.3]} 45...
Qg4# {[%clk 0:00:12.5]} 0-1